Cogmind - Beta 16.1 @@@ ROGUE MODE // 2026.03.10 @ 07:32:17 Player: OniAn Result: Destroyed by G-47 Trooper with Particle Gun Performance ------------- Evolutions (1) 500 Regions Visited (6) 1200 Robots Destroyed (64) 320 Value Destroyed (1563) 1563 Prototype IDs (27) 540 Alien Tech Used (0) 0 Bonus (519) 519 TOTAL SCORE: 4642 Bonus ------- High Alert Combat Kills 33 Follower Combat Kills 186 Aligned with FarCom 300 Cogmind --------- Core Integrity 0/400 Matter 300/300 Energy 100/100 System Corruption 0% Temperature Cool (9) Movement Core (150) Ox2 Location -8/Mines Parts ------- > --- POWER (1) -------- (None) > --- PROPULSION (2) --- (None) > --- UTILITY (4) ------ Small Storage Unit Improved Terrain Scan Processor Improved Targeting Computer > --- WEAPON (2) ------- Beam Rifle > --- INVENTORY (8) ---- Hacking Suite Hacking Suite Hacking Suite Hacking Suite Firepult Improved Grenade Launcher Datajack Peak State ------------ > --- POWER ------------ Improved Ion Engine > --- PROPULSION ------- Carbon-fiber Leg > --- UTILITY ---------- Small Storage Unit Improved Terrain Scanner Improved Terrain Scan Processor Improved Targeting Computer > --- WEAPON ----------- Beam Rifle Light EM Pulse Cannon > --- INVENTORY -------- Hacking Suite Hacking Suite Hacking Suite Hacking Suite Firepult Improved Grenade Launcher Datajack [Rating: 21] Favorites ----------- Power Improved Ion Engine Engine Improved Ion Engine Power Core Light Nuclear Core Propulsion Carbon-fiber Leg Treads Light Treads Leg Carbon-fiber Leg Utility Small Storage Unit Device Improved Terrain Scanner Storage Small Storage Unit Processor Improved Targeting Computer Protection Light Armor Plating Weapon Light EM Pulse Cannon Energy Gun Heavy EM Pulse Gun Energy Cannon Light EM Pulse Cannon Launcher Mini Grenade Launcher Build | -11 -10 -10 -9 -9 -9 -8 ------- Run | Yrd Mat Min Mat Min Exi Min Slots Evolved 2 | . . . 2 . . . Power . | . . . . . . . Propulsion . | . . . . . . . Utility 2 | . . . 2 . . . Weapon . | . . . . . . . Parts Attached 52 | 6 9 10 21 5 . 1 Power 6 | 1 . 2 3 . . . Engine 5 | 1 . 2 2 . . . Core 1 | . . . 1 . . . Reactor . | . . . . . . . Propulsion 10 | 2 2 2 4 . . . Treads 6 | 2 2 . 2 . . . Leg 4 | . . 2 2 . . . Wheel . | . . . . . . . Hover . | . . . . . . . Flight . | . . . . . . . Utility 16 | 1 2 1 9 2 . 1 Device 3 | . . . 2 1 . . Storage 3 | 1 1 . . 1 . . Processor 3 | . . . 2 . . 1 Hackware . | . . . . . . . Protection 7 | . 1 1 5 . . . Artifact . | . . . . . . . Weapon 20 | 2 5 5 5 3 . . Energy Gun 13 | 2 5 5 . 1 . . Energy Cannon 4 | . . . 4 . . . Ballistic Gun . | . . . . . . . Ballistic Cannon . | . . . . . . . Launcher 3 | . . . 1 2 . . Special Weapon . | . . . . . . . Impact Weapon . | . . . . . . . Slashing Weapon . | . . . . . . . Piercing Weapon . | . . . . . . . Special Melee Weapon . | . . . . . . . Unidentified Prototypes 1 | . . . 1 . . . Parts Lost 16 | . 1 6 2 3 . 4 Power 2 | . . . 1 . . 1 Propulsion 3 | . . 1 . 1 . 1 Utility 4 | . . 1 1 1 . 1 Weapon 7 | . 1 4 . 1 . 1 Highest Loss Streak 4 | . 1 4 1 1 . 3 To Critical Strikes . | . . . . . . . Average Backups 6 | . 5 4 7 7 7 6 Power . | . . . . . . . Propulsion . | . . . . . . . Utility 1 | . . . . 4 4 4 Weapon 4 | . 5 3 6 2 2 1 Tool/Special . | . . . . . . . Unused Backups 15 | . 1 . 7 . . 7 Power . | . . . . . . . Propulsion . | . . . . . . . Utility 4 | . . . . . . 4 Weapon 10 | . 1 . 7 . . 2 Tool/Special 1 | . . . . . . 1 Average Slot Usage (%) 94 | . 99 93 95 94 88 85 Engine 10 | . 14 14 6 11 11 9 Treads 8 | . 28 3 11 . . . Leg 12 | . . 23 10 17 11 10 Device 4 | . . . 7 2 11 10 Storage 13 | . 21 14 11 11 11 11 Processor 7 | . . . 10 11 11 18 Protection 12 | . 6 13 13 19 11 3 Energy Gun 13 | . 27 22 4 3 11 11 Energy Cannon 9 | . . . 17 17 11 10 Peak Build Rating 21 | 6 10 10 20 18 19 21 Average Rating 14 | 4 9 8 16 17 17 19 On Entrance 11 | . 6 10 9 18 17 19 Avg Prop Armor Cover (%) 8 | . . 8 . . . . Naked Turns . | . . . . . . . Heaviest Build 26 | 14 20 19 26 24 21 21 Greatest Support 46 | 40 40 40 46 30 15 15 Greatest Overweight (x) 2 | . . 1 1 1 1 2 Average Overweight (x) . | . . . . . 1 . Largest Inventory Capacity 8 | 8 8 8 8 8 8 8 Average Capacity 7 | 6 8 8 8 8 8 8 Most Carried 8 | . 8 6 8 8 8 8 Average Carried 6 | . 5 4 7 7 7 7 Final Capacity 8 | 8 8 8 8 8 8 8 Final Carried 8 | . 6 4 8 8 8 8 Class Distribution -------------------- 53% | Scavenger-Mutant 37% | Mutant 9% | Scavenger-Skirmisher Dominant Class ---------------- Mutant | -10/Materials Scavenger-Mutant | -10/Mines Mutant | -9/Materials Scavenger-Mutant | -9/Mines Scavenger-Mutant | -9/Exiles Scavenger-Skirmisher | -8/Mines Resources | -11 -10 -10 -9 -9 -9 -8 ----------- Run | Yrd Mat Min Mat Min Exi Min Matter Collected 799 | 196 154 78 276 95 . . Remotely . | . . . . . . . Salvage Created 2246 | . 672 447 975 152 . . Parts 156 | . 41 34 75 6 . . Haulers Intercepted . | . . . . . . . Recyclers Shooed 2 | . . . 2 . . . Parts Field Recycled . | . . . . . . . Retrieved Matter . | . . . . . . . Parts Self-Destructed . | . . . . . . . Prevented . | . . . . . . . Parts Restored . | . . . . . . . Kills | -11 -10 -10 -9 -9 -9 -8 ------- Run | Yrd Mat Min Mat Min Exi Min Combat Hostiles Destroyed 54 | . 14 10 17 13 . . Guns 22 | . 12 8 2 . . . Cannons 22 | . . . 13 9 . . AOE 10 | . 2 2 2 4 . . Classes Destroyed 11 | . 6 2 2 1 . . Worker 3 | . 1 . 2 . . . Builder 2 | . . . 2 . . . Tunneler 1 | . . 1 . . . . Recycler 3 | . 1 1 1 . . . Operator 3 | . 2 . 1 . . . Watcher 6 | . 3 . 3 . . . Swarmer 16 | . 5 4 3 4 . . Grunt 19 | . 9 4 6 . . . Duelist 1 | . . . 1 . . . Sentry 10 | . . 2 8 . . . Assembled 9 | . . . . 9 . . Best Kill Streak 5 | . 4 3 5 4 . . Combat Bots Only 4 | . 3 3 3 4 . . Max Kills in Single Turn 3 | . 3 2 3 2 . . Gunslinging 1 | . 1 . . . . . Exploded 2 | . 1 2 1 2 . . Melee . | . . . . . . . Uniques/NPCs Destroyed . | . . . . . . . Combat | -11 -10 -10 -9 -9 -9 -8 -------- Run | Yrd Mat Min Mat Min Exi Min Hostile Shots Fired 287 | . 52 55 97 35 . 48 Missed 90 | . 13 19 26 13 . 19 Hits 197 | . 39 36 71 22 . 29 Melee 7 | . . . 3 3 . 1 Projectile 190 | . 39 36 68 19 . 28 Critical Strikes 3 | . . . 2 . . 1 Part Disruptions 1 | . . . . 1 . . Damage Taken 2550 | . 475 506 740 340 . 489 Core 549 | . 41 100 103 29 . 276 Absorbed by Shields 199 | . . . 199 . . . Redirected to Shielding 9 | . . . 3 6 . . Core Remaining (%) 71 | 100 . 43 . . . . Volleys Fired 136 | . 41 24 43 26 . 2 Largest 2 | . 2 2 2 2 . 2 Hottest 136 | . 90 90 136 124 . 112 Shots Fired 255 | . 81 37 84 49 . 4 Gun 130 | . 81 37 4 6 . 2 Cannon 118 | . . . 76 40 . 2 Launcher 7 | . . . 4 3 . . Special . | . . . . . . . Kinetic . | . . . . . . . Thermal 67 | . . . 42 23 . 2 Explosive 7 | . . . 4 3 . . Electromagnetic 181 | . 81 37 38 23 . 2 Robot Hit Streak 14 | . 7 6 11 14 . 6 Robot Miss Streak 5 | . 4 2 5 4 . . Penetration Max . | . . . . . . . Secondary Targets 6 | . 4 2 . . . . Max Gunslinging Chain 1 | . 1 1 . . . . Shots Hit Robots 148 | . 44 24 51 25 . 4 Core Hits 100 | . 27 17 36 19 . 1 Critical Kills . | . . . . . . . Critical Parts Destroyed . | . . . . . . . Critical Strikes 3 | . 1 . 1 1 . . Burn 1 | . . . . 1 . . Corrupt 2 | . 1 . 1 . . . Melee Attacks . | . . . . . . . Impact . | . . . . . . . Slashing . | . . . . . . . Piercing . | . . . . . . . Sneak Attacks . | . . . . . . . Combat Hostiles . | . . . . . . . Follow-up Attacks . | . . . . . . . Damage Inflicted 3720 | . 992 486 1490 679 . 73 Guns 1211 | . 759 362 17 44 . 29 Cannons 1595 | . . . 1121 430 . 44 Explosions 910 | . 233 124 348 205 . . Melee . | . . . . . . . Ramming 4 | . . . 4 . . . Kinetic . | . . . . . . . Thermal 1049 | . 233 124 517 146 . 29 Explosive 553 | . . . 348 205 . . Electromagnetic 2114 | . 759 362 621 328 . 44 Impact . | . . . . . . . Slashing . | . . . . . . . Piercing . | . . . . . . . Highest Corruption . | . . . . . . . Average Corruption . | . . . . . . . Corruption Purged . | . . . . . . . Corruption Blocked . | . . . . . . . Overload Shots . | . . . . . . . Overflow Damage 54 | . . . 44 10 . . Projectiles 38 | . . . 28 10 . . Explosions 16 | . . . 16 . . . Melee . | . . . . . . . Knockbacks . | . . . . . . . Impact . | . . . . . . . Kinetic . | . . . . . . . Secondary . | . . . . . . . Self-Inflicted Damage 133 | . 47 38 7 41 . . Shots 6 | . 2 1 1 2 . . Rammed . | . . . . . . . Targets Rammed 3 | . . . 3 . . . Kicked 3 | . . . 3 . . . Crushed . | . . . . . . . Highest Temperature 330 | . 314 313 309 330 . 75 Average Temperature 100 | . 98 97 108 97 . 38 Received Heat Transfer 894 | . 183 174 227 40 . 270 Effects 6 | . . . 6 . . . Energy Bleed 1 | . . . 1 . . . Interference 5 | . . . 5 . . . Siege Activations . | . . . . . . . Martial Activations . | . . . . . . . Shielding Activations . | . . . . . . . Robots Disrupted . | . . . . . . . Combat Hostiles . | . . . . . . . Robots Corrupted . | . . . . . . . Combat Hostiles . | . . . . . . . Parts Fried 6 | . 5 . 1 . . . Impact Corruptions . | . . . . . . . Robots Melted . | . . . . . . . Combat Hostiles . | . . . . . . . Parts Melted . | . . . . . . . Heat Transferred 1819 | . 300 150 925 370 . 74 Parts Sabotaged . | . . . . . . . Parts Stolen . | . . . . . . . Parts Stripped . | . . . . . . . Power Chain Reactions 6 | . 4 2 . . . . Alert | -11 -10 -10 -9 -9 -9 -8 ------- Run | Yrd Mat Min Mat Min Exi Min Maximum Alert Level 2 | . . . 2 1 . . Low Security (%) 85 | 100 100 100 56 85 . 100 Level 1 10 | . . . 27 14 . . Level 2 4 | . . . 16 . . . Level 3 . | . . . . . . . Level 4 . | . . . . . . . Level 5 . | . . . . . . . High Security . | . . . . . . . Max Security . | . . . . . . . Peak Influence 439 | . 190 96 439 290 . 58 Initial 169 | . . . . 169 . . Average 71 | . 40 14 172 63 . 2 Influence Increases 1982 | . 454 343 944 121 . 120 Destroy 0b10 Robot/C 1100 | . 280 240 500 80 . . Destroy 0b10 Robot/NC 95 | . 35 10 50 . . . Destroy Leader 274 | . 56 40 168 10 . . Allied During Kill 96 | . . 4 92 . . . Successful Hack 51 | . 9 . 42 . . . Disable Machine 90 | . 45 30 15 . . . Destroy Structure 96 | . 14 19 32 31 . . Partial Spotted 30 | . . . 30 . . . Lose Combat Pursuer 150 | . 15 . 15 . . 120 Influence Decreases 1924 | . 454 343 509 556 . 62 Entered New Map 266 | . . . . 266 . . Time Decay 1332 | . 258 303 449 290 . 32 Lost Part 100 | . 10 40 20 . . 30 Lost Ally 40 | . . . 40 . . . Purge Threat 186 | . 186 . . . . . Squads Dispatched 5 | . 2 . 3 . . . Investigation 1 | . . . 1 . . . Extermination . | . . . . . . . Reinforcement 3 | . 2 . 1 . . . Assault 1 | . . . 1 . . . Garrison . | . . . . . . . Intercept . | . . . . . . . Searches Triggered . | . . . . . . . Construction Impeded 1 | . . . 1 . . . Haulers Reinforced . | . . . . . . . Active Scanning Responses . | . . . . . . . Cargo Convoy Interrupts . | . . . . . . . Stealth | -11 -10 -10 -9 -9 -9 -8 --------- Run | Yrd Mat Min Mat Min Exi Min Distress Signals 4 | . 1 . 2 1 . . Communications Jammed . | . . . . . . . Distress Signals . | . . . . . . . Times Spotted 99 | . 24 12 36 16 . 11 Peak Tracking Total 9 | . 4 3 9 4 . 9 Tactical Retreats 10 | . 1 . 1 3 . 5 Traps | -11 -10 -10 -9 -9 -9 -8 ------- Run | Yrd Mat Min Mat Min Exi Min Traps Triggered 1 | . . . 1 . . . Indirectly . | . . . . . . . Trap Hack Attempts . | . . . . . . . Triggered . | . . . . . . . Disarmed . | . . . . . . . Reprogrammed . | . . . . . . . Reused . | . . . . . . . Traps Extracted . | . . . . . . . Installed . | . . . . . . . Triggered . | . . . . . . . Machines | -11 -10 -10 -9 -9 -9 -8 ---------- Run | Yrd Mat Min Mat Min Exi Min Machines Disabled 6 | . 3 2 1 . . . Max in Single Turn 2 | . 1 2 . . . . Machines Repaired . | . . . . . . . Machines Dismantled . | . . . . . . . Machines Sabotaged . | . . . . . . . Overloaded Fab Kills . | . . . . . . . Hacking | -11 -10 -10 -9 -9 -9 -8 --------- Run | Yrd Mat Min Mat Min Exi Min Machines Accessed 13 | . 4 . 8 . 1 . Terminals 11 | . 4 . 7 . . . Fabricators . | . . . . . . . Repair Stations . | . . . . . . . Recycling Units 1 | . . . 1 . . . Scanalyzers . | . . . . . . . Garrison Access . | . . . . . . . Total Hacks 31 | . 10 . 20 . 1 . Successful 16 | . 4 . 11 . 1 . Failed 15 | . 6 . 9 . . . Catastrophic 1 | . 1 . . . . . Database Lockouts . | . . . . . . . Manual 17 | . 5 . 11 . 1 . Terminals 28 | . 10 . 18 . . . Fabricators . | . . . . . . . Repair Stations . | . . . . . . . Recycling Units 2 | . . . 2 . . . Scanalyzers . | . . . . . . . Garrison Access . | . . . . . . . Terminal Hacks 6 | . 2 . 3 . 1 . Prototype ID Bank 1 | . . . 1 . . . Branch Access Points 1 | . . . 1 . . . Unreport Threat 2 | . 2 . . . . . Zone Layout 1 | . . . 1 . . . Proto ID Catalog 1 | . . . . . 1 . Fabricator Hacks . | . . . . . . . Repair Station Hacks . | . . . . . . . Recycling Unit Hacks 1 | . . . 1 . . . Retrieve Components 1 | . . . 1 . . . Scanalyzer . | . . . . . . . Garrison Access Hacks . | . . . . . . . Unauthorized Hacks 9 | . 2 . 7 . . . Terminals 9 | . 2 . 7 . . . Botnet 8 | . 2 . 6 . . . Disrupt 1 | . . . 1 . . . Fabricators . | . . . . . . . Repair Stations . | . . . . . . . Recycling Units . | . . . . . . . Scanalyzers . | . . . . . . . Garrison Access . | . . . . . . . Data Cores Recovered . | . . . . . . . Used . | . . . . . . . Hacking Detections 11 | . 4 . 7 . . . Full Trace Events . | . . . . . . . Feedback Events . | . . . . . . . Feedback Blocked . | . . . . . . . Robot Schematics Acquired . | . . . . . . . Robots Built . | . . . . . . . Authchips . | . . . . . . . Time . | . . . . . . . Total Robot Build Rating . | . . . . . . . Part Schematics Acquired . | . . . . . . . Parts Built . | . . . . . . . Authchips . | . . . . . . . Time . | . . . . . . . Total Part Build Rating . | . . . . . . . Part Studies Acquired . | . . . . . . . Parts Repaired . | . . . . . . . Time . | . . . . . . . Parts Recycled . | . . . . . . . Recycled Matter . | . . . . . . . Retrieved Matter . | . . . . . . . Retrieved Components 10 | . . . 10 . . . Parts Scanalyzed . | . . . . . . . Part Schematics Acquired . | . . . . . . . Parts Damaged . | . . . . . . . Bothacking | -11 -10 -10 -9 -9 -9 -8 ------------ Run | Yrd Mat Min Mat Min Exi Min Used RIF Installer . | . . . . . . . Robots Hacked . | . . . . . . . Non-combat . | . . . . . . . Combat . | . . . . . . . Robot Hacks Applied . | . . . . . . . Relay Couplers Released . | . . . . . . . Fabnet Peak Effective % . | . . . . . . . Robots Rewired . | . . . . . . . Allies Hacked . | . . . . . . . Hacks Repelled . | . . . . . . . Allies | -11 -10 -10 -9 -9 -9 -8 -------- Run | Yrd Mat Min Mat Min Exi Min Total Allies 4 | . . 4 . . . . Largest Group 4 | . . 4 4 . . . Highest-Rated Group 71 | . . 71 71 . . . Highest-Rated Ally 31 | . . 31 31 . . . Total Orders . | . . . . . . . Ally Attacks 65 | . . 5 60 . . . Total Damage 698 | . . 104 594 . . . Kills 12 | . . 2 10 . . . Allies Corrupted . | . . . . . . . Allies Melted . | . . . . . . . Intel | -11 -10 -10 -9 -9 -9 -8 ------- Run | Yrd Mat Min Mat Min Exi Min Active Infowar (turns) 1589 | . . . . 354 474 761 Terrain 1589 | . . . . 354 474 761 Robot Analysis Total . | . . . . . . . Derelict Logs Recovered 2 | . . 1 . 1 . . Drone Launches . | . . . . . . . Drone Recoveries . | . . . . . . . Exploration | -11 -10 -10 -9 -9 -9 -8 ------------- Run | Yrd Mat Min Mat Min Exi Min Turns Passed 7856 | 94 1289 1747 2065 1396 474 791 Spaces Moved 3644 | 55 521 892 1304 336 249 287 Core 28 | 2 . . . . . 26 Treads 1294 | 53 521 111 609 . . . Legs 2322 | . . 781 695 336 249 261 Wheels . | . . . . . . . Hover . | . . . . . . . Flight . | . . . . . . . Fastest Speed 50 | 50 160 120 120 120 190 120 Average Speed 149 | 156 160 128 138 176 190 175 Slowest Speed 190 | 160 160 190 190 190 190 190 Overloaded Moves . | . . . . . . . Propulsion Burnouts . | . . . . . . . Robots Hopped . | . . . . . . . Potential Cave-ins 5 | . . . . 5 . . Cave-ins Triggered . | . . . . . . . Exploration Rate (%) 60 | 4 87 97 80 40 62 53 Regions Visited 6 Branch Regions 4 Pre-discovered Areas . | . . . . . . . Known Exits Taken 1 | . . . 1 . . . Unknown Exits Taken 5 | 1 1 1 . 1 1 . Scrap Searched 4 | . . 1 . 1 . 2 Spaces Dug . | . . . . . . . Terrain Destroyed 109 | . 13 25 29 42 . . Melee . | . . . . . . . Projectile 4 | . . . . 4 . . AOE 105 | . 13 25 29 38 . . Terrain Rammed . | . . . . . . . Walls Destroyed . | . . . . . . . Machines Disabled . | . . . . . . . Actions | -11 -10 -10 -9 -9 -9 -8 --------- Run | Yrd Mat Min Mat Min Exi Min Total 5796 | 60 898 1452 1474 1090 251 571 Wait 1894 | . 307 520 68 721 . 278 Move 3638 | 54 520 891 1303 335 248 287 Hop . | . . . . . . . Pick Up 29 | . 11 2 14 . 1 1 Fast Attach 26 | 6 3 3 11 2 . 1 Attach 8 | . 2 5 . 1 . . Detach 6 | . 2 2 1 1 . . Swap 21 | . 4 2 12 3 . . Drop 35 | . 8 3 19 1 2 2 Fire 136 | . 41 24 43 26 . 2 Melee . | . . . . . . . Ram . | . . . . . . . Kick 3 | . . . 3 . . . Crush . | . . . . . . . Escape Stasis . | . . . . . . . Rewire . | . . . . . . . Trap . | . . . . . . . Miscellaneous . | . . . . . . . Route ------- -11/Scrapyard -10/Materials (discovered 5 exits: *Mat x2 / [*Min x2] / [*Sub]) -10/Mines (discovered 3 exits: *Mat x2 / [*Sub]) -9/Materials (discovered 4 exits: [*Mat x2] / *Min / *Sto) -9/Mines -9/Exiles -8/Mines (discovered 1 exit: [*Mat]) History --------- Turn | Location | Event 9 | -11/Scrapyard | Discovered new exit (range 16) 95 | -11/Scrapyard | Entered Materials 312 | -10/Materials | Build established: Mutant 889 | -10/Materials | Discovered new exit (range 16) 913 | -10/Materials | Discovered new exit (range 16) 998 | -10/Materials | Discovered new exit (range 6) 1169 | -10/Materials | Discovered new exit (range 16) 1285 | -10/Materials | Discovered new exit (range 13) 1384 | -10/Materials | Entered Mines 1402 | -10/Mines | Met a Derelict bent on vengeance 1561 | -10/Mines | Lost 4 parts (1n1u2w) 1680 | -10/Mines | Core integrity fell below 50% 1797 | -10/Mines | Discovered new exit (range 5) 1917 | -10/Mines | Escorted by a lone wolf Derelict 1925 | -10/Mines | Discovered new exit (range 3) 2004 | -10/Mines | Build established: Scavenger-Mutant 2315 | -10/Mines | Received a Rocket Launcher from a helpful Derelict 2566 | -10/Mines | Discovered new exit (range 10) 2620 | -10/Mines | Assisted by bots powering up and referring to "LRC-V3" 2744 | -10/Mines | Learned Materials security intel 3131 | -10/Mines | Entered Materials 3131 | -9/Materials | Accompanied by 4 allies 3131 | -9/Materials | Evolved 2 slots: Utility x2 3511 | -9/Materials | Build established: Mutant 3595 | -9/Materials | Discovered new exit (range 15) 3883 | -9/Materials | Discovered new exit (range 6) 4304 | -9/Materials | Lost 3 allies 4684 | -9/Materials | Identified exit to Mines 4684 | -9/Materials | Identified exit to Storage 4786 | -9/Materials | Discovered new exit (range 13) 4940 | -9/Materials | Build established: Scavenger-Mutant 5131 | -9/Materials | First assault squad dispatched 5196 | -9/Materials | Entered Mines 5237 | -9/Mines | Assembled infested the area 5242 | -9/Mines | A weapon hastily lodged in a ceiling crevice suddenly fell to the ground 5256 | -9/Mines | Learned Materials stockpile data 6572 | -9/Mines | Deemed a non-threat by the Exiles lab entrance 6573 | -9/Mines | Discovered new exit (range 5) 6592 | -9/Mines | Entered Exiles 6640 | -9/Exiles | Met 8R-AWN 6676 | -9/Exiles | Met EX-HEX 6758 | -9/Exiles | Met EX-BIN 6781 | -9/Exiles | Aligned with FarCom system 6782 | -9/Exiles | Given EX-Vault access code 6834 | -9/Exiles | Opened EX-Vault 6863 | -9/Exiles | Found Firepult 6906 | -9/Exiles | Warned to stay clear of 0b10 Research branches 6973 | -9/Exiles | Met EX-DEC 7041 | -9/Exiles | Discovered new exit (range 11) 7066 | -9/Exiles | Left Exiles lab with Firepult 7066 | -9/Exiles | Entered Mines 7361 | -8/Mines | Build established: Scavenger-Skirmisher 7615 | -8/Mines | Discovered new exit (range 10) 7820 | -8/Mines | Core integrity fell below 50% 7829 | -8/Mines | Core integrity fell below 20% 7857 | -8/Mines | Destroyed by G-47 Trooper with Particle Gun Last Messages --------------- 07203_ Found Utility Shielding. 07203_ Found Imp. Grenade Launcher. 07203_ Found 60 Matter. 07214_ Dropped Mni. Grenade Launcher. 07219_ Acquired Imp. Grenade Launcher. 07334_ Searching scrap... 07334_ Found Imp. Terrain Scan Processor. 07334_ Found Imp. Treads. 07334_ Found Imp. Signal Interpreter. 07334_ Found 35 Matter. 07338_ Dropped Core Shielding. 07340_ Acquired Imp. Terrain Scan Processor. [Achievement: Omniscient Cartographer] 07352_ R-06 Scavenger collects Core Shielding. 07615_ EXIT=FOUND 07760_ Imp. Ion Engine destroyed. 07816_ Lgt. EM Pulse Cannon destroyed. 07818_ Carbon-fiber Leg destroyed. 07819_ Critical hit (Burn: +37). 07827_ Imp. Terrain Scanner destroyed. Map ----- +----------------------------------------------------+ | | | | | | | | | | | | | | | | | | | | | | | | | ???????????????????????????????????????????????? | | ???????????????????????????????????????????????? | | ??????????????????###??????????????????????????? | | ??????????????????? ##????????????????????????? | | ??????????????????? ##??????????????????????? | | ???????#???????? #####??????????????????? | | #?????????????###### ####?#??????????????#?? | | ????????????#######?# ######????#?????????#? | | ???????????######?#### ######?#?#??#?#????## | | ???#??????####?#?###### ######?##??#???#????? | | ?????????############## ######?##??###?##??? | | ?#??????############## ####??###?####?#??#? | | ?#??????############# < ##############?##### | | ??#????############# g l @ #########?########??? | | ???????######## g gg #############?###?#??# | | #?????######### ##### ###################???# | | ??????######### #####################?####?#?#?? | | ???#?## ###### ####################?#?#?####### | | ??#?## ########### ########## ### | | ???## """ ########## ######## ## | | ?#?# """g########## ### #? | | #??# """g########## ##### ##?# ## | | ?#### gg######### ###### ##?## ## | | #?#?#### ######## ###### ##### #? | | ???###### ####### ####### ### ## | | ??????### ##### ########### ## | | ????#?### #### ############ """ #? | | ???##### ## ############ """ ## | | #### ## ########### """ ## | | ## ######### ### | | #### ## ######## ####?? | | ### ###### ### ######## #####?? | | ?## ####### ### ### ###??###? | | ?#######?### ### %### #### ########### | | ??????####?# ####!=### ##### ######?###?? | | #?#????#?### ##### ### ###### #######?#?### | | #???????#### ##### ####### ############? | | ?#??#?##???# ########### ######?#???## | +----------------------------------------------------+ Best States ------------- Heat Dissipation 28 Energy Generation 14 Energy Capacity 280 Matter Stores 300 Matter Capacity 500 Sight Range 16 Terrain Scan Range 16 Terrain Scan Density 110 Armor Coverage 150 Core Shielding 20 Evasion (%) 55 Targeting Accuracy 6 Recoil Reduction 2 Item Schematics ----------------- None Robot Schematics ------------------ None Fabricated ------------ Nothing Repaired ---------- Nothing Studied --------- None Alien Tech Used ----------------- None Achievements -------------- Omniscient Cartographer Challenges ------------ None Game ------ Seed AlphaShiftCapacitor Manual? 0 Play Time 00:42:27 Cumulative 49.9 hours Start 2026.03.10 @ 06:52:03 End 2026.03.10 @ 07:32:17 Sessions 1 Manual Loads 0 Difficulty Rogue Special Mode None Game No. 70 Rogue 46 Adventurer 24 Explorer 0 Win Type - Total 0 Types 0/0/0/0/0/0/0/0/0/0 Lore% 33 Gallery% 29 Achievement% 23 Wizard Run 0 Options --------- Layout 1 ASCII 0 Keyboard 1 Movement Arrows Keybinds 0 Fullscreen 1 Font 24/Smallcaps Map View 50x35 Zoom Use 0% Tactical HUD 1 Map Filters NONE Filters NONE Steam 1 RUN: 65bde9a4-45fd-4420-8234-edaee7700907